fUSD/lending_fUSD_20260410
["ID","MTS","AMOUNT","RATE_DAILY","PERIOD"]
[420203416,1775773845977,-500.0,0.00013905,2]
[420203417,1775773846008,-178.74,0.00013905,2]
[420203418,1775773846019,-500.0,0.00013905,2]
[420203419,1775773846033,-500.0,0.00013905,2]
[420203420,1775773846043,-297.09975057,0.00014166,2]
[420203421,1775773846054,-943.89,0.00014175,2]
[420203422,1775773846075,-178.74,0.00014179,2]
[420203423,1775773846085,-1600.0,0.00014232,2]
[420203424,1775773846095,-427.0,0.00014259,2]
[420203425,1775773846121,-2000.0,0.00014267,2]
[420203426,1775773846147,-500.0,0.00014267,2]
[420203427,1775773846175,-1500.0,0.00014288,2]
[420203428,1775773846202,-2500.0,0.00014299,2]
[420203429,1775773846213,-2500.0,0.00014299,2]
[420203431,1775773846243,-300.0,0.00014299,2]
[420203433,1775773846261,-300.0,0.00014299,2]
[420203435,1775773846271,-300.0,0.00014299,2]
[420203437,1775773846297,-300.0,0.00014299,2]
[420203439,1775773846309,-2500.0,0.00014299,2]
[420203441,1775773846341,-2500.0,0.00014299,2]
[420203443,1775773846360,-2500.0,0.00014299,2]
[420203446,1775773846431,-300.0,0.00014299,2]
[420203448,1775773846467,-500.0,0.00014299,2]
[420203450,1775773846486,-500.0,0.00014299,2]
[420203451,1775773846501,-200.0,0.00014299,2]
[420203453,1775773846517,-200.0,0.00014299,2]
[420203455,1775773846529,-300.0,0.00014299,2]
[420203457,1775773846543,-4751.44989207,0.000143,2]
[420203459,1775773846559,-505.0,0.00014387,3]
[420203461,1775773846588,-178.76,0.00014453,2]
[420203463,1775773846614,-297.09975057,0.00014513,2]
[420203465,1775773846632,-33975.0,0.00014571,2]
[420203467,1775773846648,-165.81,0.00014607,2]
[420203468,1775773846679,-255.0,0.00014684,2]
[420203471,1775773846698,-150.0,0.000147,2]
[420203473,1775773846716,-420.0,0.00014766,2]
[420203475,1775773846773,-601.3376128,0.00014845,2]
[420203476,1775773846810,-174.61919141,0.00014845,2]
[420203478,1775773846849,-297.09975057,0.0001486,2]
[420203480,1775773846900,-168.0,0.00014925,2]
[420203482,1775773846930,-826.28,0.00015,2]
[420203484,1775773846943,-300.0,0.00015,2]
[420203486,1775773846959,-168.0,0.00015019,2]
[420203488,1775773846984,-168.0,0.0001504,2]
[420203490,1775773846994,-500.0,0.00015177,2]
[420203492,1775773847004,-500.0,0.00015177,2]
[420203493,1775773847018,-204.60703617,0.00015177,2]
[420203495,1775773847029,-1694.0,0.00015177,2]
[420203497,1775773847044,-168.0,0.00015191,2]
[420203499,1775773847053,-9510.1,0.00015205,2]
[420203501,1775773847067,-297.09975057,0.00015207,2]
[420203503,1775773847077,-398.68134625,0.0001532,2]
[420203505,1775773847087,-168.0,0.00015378,2]
[420203507,1775773847099,-181.08010149,0.00015393,2]
[420203509,1775773847112,-500.0,0.00015399,2]
[420203511,1775773847122,-165.81,0.00015411,2]
[420203513,1775773847139,-168.0,0.00015428,2]
[420203515,1775773847149,-622.0,0.0001545,2]
[420203517,1775773847170,-168.0,0.00015491,2]
[420203519,1775773847182,-4000.0,0.00015507,2]
[420203520,1775773847201,-297.09975057,0.00015553,2]
[420203522,1775773847212,-168.0,0.00015555,2]
[420203524,1775773847222,-1264.0,0.00015653,2]
[420203526,1775773847246,-926.0,0.00015653,2]
[420203528,1775773847268,-1218.0,0.00015653,2]
[420203530,1775773847281,-3524.0,0.00015653,2]
[420203532,1775773847306,-1047.0,0.00015653,2]
[420203534,1775773847330,-505.0,0.00015673,4]
[420203536,1775773847340,-350.0,0.00015801,2]
[420203538,1775773847364,-10000.0,0.00015835,2]
[420203540,1775773847373,-168.0,0.00015862,2]
[420203542,1775773847393,-2000.0,0.00015872,2]
[420203544,1775773847403,-500.0,0.00015872,2]
[420203546,1775773847417,-200.0,0.00015872,2]
[420203548,1775773847430,-876.57818174,0.00015875,2]
[420203550,1775773847439,-433.0,0.00015891,2]
[420203552,1775773847451,-500.0,0.00015894,2]
[420203554,1775773847462,-4000.0,0.00015895,2]
[420203556,1775773847484,-175.2757,0.000159,2]
[420203558,1775773847494,-417.48004698,0.000159,2]
[420203560,1775773847503,-808.76571381,0.000159,2]
[420203562,1775773847513,-399.39715108,0.000159,2]
[420203564,1775773847537,-1020.73607975,0.000159,2]
[420203566,1775773847547,-297.09975057,0.000159,2]
[420203568,1775773847573,-5941.0628085,0.000159,2]
[420203570,1775773847583,-5000.0,0.000159,2]
[420203572,1775773847593,-1000.0,0.0001591,2]
[420203574,1775773847604,-152.49058738,0.00015941,2]
[420203576,1775773847613,-250.0,0.00015945,2]
[420203578,1775773847624,-261.84332487,0.00015953,2]
[420203580,1775773847634,-255.11779333,0.00015959,2]
[420203582,1775773847644,-181.76010417,0.00015959,2]
[420203584,1775773847654,-150.00000001,0.00015959,2]
[420203586,1775773847666,-235.00664425,0.00015973,2]
[420203588,1775773847680,-500.0,0.00015973,2]
[420203589,1775773847690,-500.0,0.00015973,2]
[420203591,1775773847701,-418.3764967,0.00015973,2]
[420203593,1775773847713,-500.0,0.00015973,2]
[420203595,1775773847729,-500.0,0.00015973,2]
[420203597,1775773847743,-500.0,0.00015973,2]
[420203599,1775773847753,-500.0,0.00015973,2]
[420203601,1775773847773,-220.2418384,0.00015984,2]
[420203603,1775773847785,-151.0,0.00015997,2]
[420203605,1775773847807,-645.41,0.00015999,2]
[420203608,1775773847822,-150.0,0.00015999,2]
[420203609,1775773847876,-150.0,0.00015999,2]
[420203611,1775773847887,-150.0,0.00015999,2]
[420203613,1775773847918,-152.309805,0.00015999,2]
[420203615,1775773847928,-152.0,0.00016,5]
[420203617,1775773847938,-297524.83839142,0.00016,2]
[420203620,1775773847960,-2545.3071123,0.00016,2]
[420203622,1775773847972,-29002.78463952,0.00016,2]
[420203624,1775773847996,-796.06857506,0.00016,2]
[420203627,1775773848024,-3638.85904344,0.00016,2]
[420203629,1775773848045,-4652.89999963,0.00016,2]
[420203632,1775773848057,-10355.93768118,0.00016,2]
[420204072,1775774470783,150.0,8.901e-05,2]
[420204078,1775775031795,-303.38781552,0.00012791,2]
[420204079,1775775031808,-4526.83668561,0.00012791,2]
[420204080,1775775031835,-485.4185,0.00012791,2]
[420204081,1775775031868,-570.12167865,0.00012791,2]
[420204082,1775775031908,-105.59939422,0.00012791,2]
[420204083,1775775031951,-173.09216701,0.00012856,2]
[420204084,1775775031961,-1651.97,0.00012956,2]
[420204085,1775775031978,-164.67,0.00013096,2]
[420204086,1775775031990,-300.0,0.00013099,2]
[420204087,1775775031999,-1200.0,0.00013099,2]
[420204088,1775775032008,-1000.0,0.000131,2]
[420204089,1775775032019,-506.0,0.000131,2]
[420204090,1775775032029,-1000.0,0.0001315,2]
[420204091,1775775032038,-500.0,0.0001315,2]
[420204092,1775775032049,-150.0,0.00013371,2]
[420204093,1775775032058,-300.0,0.00013371,2]
[420204094,1775775032067,-359.135,0.00013372,2]
[420204095,1775775032082,-15533.0301,0.00013372,2]
[420204096,1775775032092,-2500.0,0.00013372,2]
[420204097,1775775032101,-175935.7592,0.00013372,2]
[420204098,1775775032114,-159.88962669,0.00013373,2]
[420204099,1775775032124,-155.09841184,0.00013373,2]
[420204100,1775775032136,-1138.30393561,0.00013373,2]
[420204101,1775775032149,-3240.0,0.00013425,2]
[420204102,1775775032160,-200.0,0.00013464,2]
[420204103,1775775032173,-538.64756101,0.00013464,2]
[420204104,1775775032185,-274.92354608,0.00013471,2]
[420204105,1775775032216,-264.50634875,0.00013471,2]
[420204106,1775775032226,-200.09793193,0.00013471,2]
[420204108,1775775032275,-500.0,0.00013471,2]
[420204110,1775775032286,-500.0,0.00013473,2]
[420204112,1775775032318,-1138.30393561,0.00013654,2]
[420204114,1775775032346,-500.0,0.00013698,2]
[420204116,1775775032371,-483.48,0.00013698,2]
[420204118,1775775032380,-500.0,0.00013698,2]
[420204120,1775775032390,-500.0,0.00013698,2]
[420204122,1775775032409,-500.0,0.00013698,2]
[420204124,1775775032431,-500.0,0.00013698,2]
[420204126,1775775032446,-500.0,0.00013698,2]
[420204128,1775775032457,-500.0,0.00013698,2]
[420204130,1775775032475,-500.0,0.00013698,2]
[420204132,1775775032486,-500.0,0.00013698,2]
[420204134,1775775032504,-500.0,0.00013698,2]
[420204136,1775775032516,-1703.49,0.00013699,2]
[420204138,1775775032525,-159.88962664,0.00013794,2]
[420204139,1775775032551,-160.0,0.00013877,2]
[420204141,1775775032567,-1138.30393561,0.00013935,2]
[420204143,1775775032583,-166.66,0.00013992,2]
[420204145,1775775032606,-150.0,0.00014,2]
[420204147,1775775032617,-371.58,0.00014,2]
[420204149,1775775032627,-812.63579297,0.00014021,2]
[420204151,1775775032653,-2500.0,0.0001407,2]
[420204153,1775775032662,-2500.0,0.0001407,2]
[420204155,1775775032673,-2500.0,0.0001407,2]
[420204157,1775775032691,-300.0,0.0001407,2]
[420204159,1775775032712,-183.9149712,0.00014142,2]
[420204161,1775775032722,-1927.69652326,0.00014142,2]
[420204163,1775775032753,-150.0,0.00014142,2]
[420204165,1775775032763,-300.0,0.00014179,2]
[420204167,1775775032774,-300.0,0.00014179,2]
[420204169,1775775032785,-300.0,0.00014179,2]
[420204171,1775775032804,-300.0,0.00014179,2]
[420204173,1775775032814,-159.88962664,0.00014215,2]
[420204175,1775775032830,-155.09841182,0.00014215,2]
[420204177,1775775032839,-1138.30393561,0.00014215,2]
[420204179,1775775032854,-166.66,0.00014286,2]
[420204182,1775775032867,-84845.21,0.00014318,2]
[420204184,1775775032889,-420.0,0.00014364,2]
[420204186,1775775032899,-200.0,0.00014383,2]
[420204188,1775775032908,-1703.49,0.00014384,2]
[420204189,1775775032929,-1680.0,0.00014409,2]
[420204190,1775775032952,-506.0,0.00014412,3]
[420204192,1775775032963,-255.0,0.00014481,2]
[420204194,1775775032974,-1138.30393561,0.00014496,2]
[420204196,1775775032994,-166.66,0.00014581,2]
[420204198,1775775033017,-159.88962664,0.00014637,2]
[420204200,1775775033026,-420.0,0.00014658,2]
[420204202,1775775033055,-1138.30393561,0.00014777,2]
[420204203,1775775033073,-166.66,0.00014875,2]
[420204204,1775775033083,-1000.0,0.00015,2]
[420204205,1775775033102,-159.88962664,0.00015058,2]
[420204206,1775775033112,-155.09841182,0.00015058,2]
[420204207,1775775033139,-1138.30393561,0.00015058,2]
[420204208,1775775033166,-1703.49,0.00015068,2]
[420204209,1775775033195,-7965.41053268,0.00015152,2]
[420204210,1775775033205,-523.0815859,0.00015152,2]
[420204211,1775775033214,-601.3376128,0.00015152,2]
[420204212,1775775033225,-200.0,0.00015152,2]
[420204213,1775775033237,-174.61919142,0.00015152,2]
[420204214,1775775033256,-151.0,0.00015152,2]
[420204215,1775775033266,-166.66,0.0001517,2]
[420204216,1775775033282,-500.0,0.00015176,2]
[420204217,1775775033292,-500.0,0.00015176,2]
[420204218,1775775033302,-491.0,0.00015177,2]
[420204219,1775775033317,-491.0,0.00015177,2]
[420204220,1775775033328,-491.0,0.00015177,2]
[420204221,1775775033338,-491.0,0.00015177,2]
[420204222,1775775033352,-491.0,0.00015177,2]
[420204223,1775775033362,-491.0,0.00015177,2]
[420204224,1775775033380,-491.0,0.00015177,2]
[420204225,1775775033390,-491.0,0.00015177,2]
[420204226,1775775033403,-491.0,0.00015177,2]
[420204227,1775775033418,-491.0,0.00015177,2]
[420204228,1775775033438,-491.0,0.00015177,2]
[420204229,1775775033448,-491.0,0.00015177,2]
[420204230,1775775033471,-491.0,0.00015177,2]
[420204231,1775775033481,-491.0,0.00015177,2]
[420204232,1775775033505,-491.0,0.00015177,2]
[420204233,1775775033527,-491.0,0.00015177,2]
[420204234,1775775033537,-491.0,0.00015177,2]
[420204235,1775775033554,-491.0,0.00015177,2]
[420204236,1775775033563,-491.0,0.00015177,2]
[420204237,1775775033587,-491.0,0.00015177,2]
[420204238,1775775033599,-491.0,0.00015177,2]
[420204239,1775775033621,-491.0,0.00015177,2]
[420204240,1775775033633,-491.0,0.00015177,2]
[420204241,1775775033660,-506.0,0.00015177,2]
[420204242,1775775033670,-500.0,0.00015177,2]
[420204243,1775775033702,-500.0,0.00015177,2]
[420204244,1775775033712,-150.0,0.00015177,2]
[420204245,1775775033746,-500.0,0.00015177,2]
[420204246,1775775033760,-500.0,0.00015177,2]
[420204247,1775775033784,-153.54546462,0.00015177,2]
[420204248,1775775033794,-500.0,0.00015177,2]
[420204249,1775775033815,-500.0,0.00015177,2]
[420204250,1775775033829,-500.0,0.00015177,2]
[420204251,1775775033839,-500.0,0.00015177,2]
[420204252,1775775033849,-500.0,0.00015177,2]
[420204253,1775775033866,-500.0,0.00015177,2]
[420204254,1775775033883,-500.0,0.00015177,2]
[420204255,1775775033903,-299.65744037,0.00015177,2]
[420204256,1775775033935,-500.0,0.00015177,2]
[420204257,1775775033945,-500.0,0.00015177,2]
[420204258,1775775033970,-500.0,0.00015177,2]
[420204259,1775775033984,-500.0,0.00015177,2]
[420204260,1775775033995,-500.0,0.00015177,2]
[420204261,1775775034018,-500.0,0.00015177,2]
[420204262,1775775034032,-500.0,0.00015177,2]
[420204263,1775775034068,-500.0,0.00015177,2]
[420204264,1775775034080,-500.0,0.00015177,2]
[420204265,1775775034095,-500.0,0.00015177,2]
[420204266,1775775034115,-500.0,0.00015177,2]
[420204267,1775775034126,-500.0,0.00015177,2]
[420204268,1775775034156,-500.0,0.00015177,2]
[420204269,1775775034175,-1983.0,0.00015177,2]
[420204270,1775775034192,-500.0,0.00015177,2]
[420204271,1775775034206,-557.38091418,0.00015177,2]
[420204272,1775775034232,-500.0,0.00015177,2]
[420204273,1775775034244,-500.0,0.00015177,2]
[420204274,1775775034317,-150.0,0.00015177,2]
[420204275,1775775034374,-500.0,0.00015177,2]
[420204276,1775775034416,-500.0,0.00015177,2]
[420204277,1775775034428,-175.2772,0.000152,2]
[420204278,1775775034437,-6092.64438001,0.00015207,2]
[420204279,1775775034459,-151.0,0.00015207,2]
[420204280,1775775034482,-304.21673453,0.00015251,2]
[420204281,1775775034492,-151.0,0.00015262,2]
[420204282,1775775034511,-151.0,0.00015317,2]
[420204283,1775775034521,-1138.30393561,0.00015338,2]
[420204284,1775775034531,-1147.0,0.00015385,2]
[420204285,1775775034549,-1147.0,0.00015458,2]
[420204286,1775775034560,-166.66,0.00015465,2]
[420204287,1775775034582,-168.6124352,0.00015478,2]
[420204288,1775775034592,-159.88962664,0.00015479,2]
[420204289,1775775034609,-1147.0,0.00015495,2]
[420204290,1775775034619,-1147.0,0.00015546,2]
[420204291,1775775034630,-150.24178575,0.00015552,2]
[420204292,1775775034649,-1147.0,0.00015571,2]
[420204293,1775775034659,-1147.0,0.00015583,2]
[420204294,1775775034677,-188.65,0.00015603,2]
[420204295,1775775034686,-2261.508,0.00015603,2]
[420204296,1775775034696,-1138.30393561,0.00015619,2]
[420204297,1775775034715,-160.0,0.00015653,2]
[420204298,1775775034725,-160.0,0.00015653,7]
[420204299,1775775034743,-1087.918643,0.00015653,2]
[420204300,1775775034754,-334.850231,0.00015653,7]
[420204301,1775775034773,-2015.837286,0.00015653,2]
[420204302,1775775034783,-509.700463,0.00015653,7]
[420204303,1775775034800,-160.0,0.00015653,7]
[420204304,1775775034811,-335.263359,0.00015653,7]
[420204305,1775775034825,-510.526718,0.00015653,7]
[420204306,1775775034835,-195.663797,0.00015653,7]
[420204307,1775775034845,-160.0,0.00015653,2]
[420204308,1775775034856,-815.806309,0.00015653,2]
[420204309,1775775034868,-1471.612619,0.00015653,2]
[420204310,1775775034878,-275.931535,0.00015653,7]
[420204311,1775775034898,-500.0,0.0001567,2]
[420204312,1775775034908,-473.39,0.0001567,2]
[420204313,1775775034918,-500.0,0.0001567,2]
[420204314,1775775034928,-500.0,0.0001567,2]
[420204315,1775775034944,-1726.0765248,0.0001568,2]
[420204316,1775775034957,-433.0,0.00015684,2]
[420204317,1775775034976,-1047.0,0.00015693,2]
[420204318,1775775034993,-622.0,0.00015693,2]
[420204319,1775775035002,-1347.0,0.00015693,2]
[420204320,1775775035018,-1264.0,0.00015693,2]
[420204321,1775775035033,-1218.0,0.00015693,2]
[420204322,1775775035053,-926.0,0.00015693,2]
[420204323,1775775035642,-415.0,0.00015693,2]
[420204324,1775775035652,-3773.0,0.00015693,2]
[420204325,1775775035666,-200.0,0.000157,2]
[420204326,1775775035676,-506.0,0.00015724,4]
[420204327,1775775035689,-1000.0,0.00015739,2]
[420204328,1775775035713,-1000.0,0.00015746,2]
[420204329,1775775035734,-552.0,0.00015751,2]
[420204330,1775775035744,-1703.49,0.00015753,2]
[420204331,1775775035756,-1147.0,0.00015754,2]
[420204332,1775775035770,-1000.0,0.00015798,2]
[420204333,1775775035779,-1000.0,0.00015816,2]
[420204334,1775775035794,-1000.0,0.00015838,2]
[420204335,1775775035803,-1729.0,0.0001585,2]
[420204336,1775775035837,-1000.0,0.00015853,2]
[420204337,1775775035848,-2000.0,0.0001586,2]
[420204338,1775775035874,-500.0,0.00015872,2]
[420204339,1775775035884,-200.0,0.00015872,2]
[420204340,1775775035893,-2000.0,0.0001589,2]
[420204341,1775775035910,-1253.5146,0.000159,2]
[420204342,1775775035919,-783.82774358,0.000159,2]
[420204343,1775775035932,-5000.0,0.000159,2]
[420204344,1775775035945,-159.88962664,0.000159,2]
[420204345,1775775035954,-155.09841182,0.000159,2]
[420204346,1775775035973,-1138.30393561,0.000159,2]
[420204347,1775775035984,-168.0,0.00015905,2]
[420204348,1775775035997,-2000.0,0.0001591,2]
[420204349,1775775036011,-1000.0,0.00015916,2]
[420204350,1775775036033,-1000.0,0.0001593,2]
[420204351,1775775036043,-250.0,0.00015945,2]
[420204352,1775775036066,-2000.0,0.0001596,2]
[420204353,1775775036075,-1000.0,0.0001597,2]
[420204354,1775775036095,-21987.0,0.00015973,2]
[420204355,1775775036104,-500.0,0.00015973,2]
[420204356,1775775036121,-500.0,0.00015973,2]
[420204357,1775775036133,-500.0,0.00015973,2]
[420204358,1775775036142,-5800.0,0.00015973,2]
[420204359,1775775036153,-1000.0,0.0001598,2]
[420204360,1775775036167,-5800.0,0.00015981,2]
[420204361,1775775036176,-1000.0,0.00015983,2]
[420204362,1775775036186,-198.66266512,0.00015984,2]
[420204363,1775775036199,-1752.059152,0.00015987,2]
[420204364,1775775036209,-5463.3897014,0.00015987,2]
[420204365,1775775036219,-849.0374735,0.00015987,2]
[420204366,1775775036231,-142560.43848583,0.00015987,2]
[420204367,1775775036246,-83238.01915797,0.00015987,2]
[420204368,1775775036258,-1000.0,0.00015995,2]
[420204369,1775775036272,-257.64678631,0.00015998,2]
[420204370,1775775036293,-1846.8639871,0.00015998,2]
[420204371,1775775036349,-155.0,0.00015999,2]
[420204372,1775775036374,-500.0,0.00015999,2]
[420204373,1775775036449,-500.0,0.00015999,2]
[420204374,1775775036460,-500.0,0.00015999,2]
[420204375,1775775036484,-500.0,0.00015999,2]
[420204376,1775775036502,-500.0,0.00015999,2]
[420204377,1775775036518,-500.0,0.00015999,2]
[420204378,1775775036538,-500.0,0.00015999,2]
[420204379,1775775036549,-500.0,0.00015999,2]
[420204380,1775775036564,-500.0,0.00015999,2]
[420204381,1775775036588,-500.0,0.00015999,2]
[420204382,1775775036597,-500.0,0.00015999,2]
[420204383,1775775036645,-500.0,0.00015999,2]
[420204384,1775775036758,-500.0,0.00015999,2]
[420204385,1775775036769,-500.0,0.00015999,2]
[420204386,1775775036779,-500.0,0.00015999,2]
[420204387,1775775036810,-235.49254898,0.00015999,2]
[420204388,1775775036819,-500.0,0.00015999,2]
[420204389,1775775036835,-500.0,0.00015999,2]
[420204390,1775775036851,-500.0,0.00015999,2]
[420204391,1775775036877,-169.89222941,0.00015999,2]
[420204392,1775775036887,-150.0,0.00015999,2]
[420204393,1775775036916,-500.0,0.00015999,2]
[420204394,1775775036940,-161.79371956,0.00015999,2]
[420204395,1775775036949,-500.0,0.00015999,2]
[420204396,1775775036968,-220.99808447,0.00015999,2]
[420204397,1775775036986,-397.09269035,0.00015999,2]
[420204398,1775775037002,-500.0,0.00015999,2]
[420204399,1775775037011,-500.0,0.00015999,2]
[420204400,1775775037022,-567.6681984,0.00015999,2]
[420204401,1775775037031,-155.0,0.00016,5]
[420204402,1775775037042,-93825.35751341,0.00016,2]
[420204414,1775775038272,-1254.41808677,0.00016,2]
[420204415,1775775038301,-3134.32751764,0.00016,2]
[420204416,1775775038315,-605.6100191,0.00016,2]
[420204417,1775775038339,-805.47043148,0.00016,2]
[420204418,1775775038368,-4461.9664004,0.00016,2]
[420204419,1775775038384,-1606.12387378,0.00016,2]
[420204420,1775775038404,-525.79675041,0.00016,2]
[420204421,1775775038417,-958.35718436,0.00016,2]
[420204423,1775775040562,-324.0815859,0.00016,2]
[420204424,1775775040588,-474.24616922,0.00016,2]
[420204425,1775775040604,-1094.0,0.00016,2]
[420204426,1775775040622,-1212.767,0.00016,2]
[420204427,1775775040634,-169375.74380737,0.00016,2]
[420204428,1775775040653,-2000.0,0.00016,2]
[420204429,1775775040674,-2525.67105449,0.00016,2]
[420204430,1775775040685,-1218.40901919,0.00016,2]
[420204431,1775775040702,-1431.79994782,0.00016,2]
[420204432,1775775040713,-3860.96306097,0.00016,2]
[420204433,1775775040725,-1020.29583807,0.00016,2]
[420204434,1775775040740,-701.74242901,0.00016,2]
[420204435,1775775040755,-400.93977782,0.00016,2]
[420204436,1775775040767,-1105.8659897,0.00016,2]
[420204437,1775775040778,-526.50344134,0.00016,2]
[420204438,1775775040794,-17008.12012169,0.00016,2]
[420204501,1775775043120,-2471.0,0.00015693,2]
[420204502,1775775043140,-17417.25003656,0.00016,2]
[420204503,1775775043190,-1043.45954568,0.00016,2]
[420204504,1775775043215,-605298.11906822,0.00016,2]
[420204597,1775775045762,-2658.00000427,0.00016,2]
[420204598,1775775045788,-1551.49999988,0.00016,2]
[420204599,1775775045994,-136592.98222325,0.00016,2]
[420204600,1775775046034,-2701.44760208,0.00016,2]
[420204601,1775775046089,-9150.72976221,0.00016,2]
[420204602,1775775046114,-1324.2,0.00016,2]
[420204648,1775775078310,151.83,7.568e-05,2]
[420204666,1775776231880,-500.0,9.988e-05,2]
[420204668,1775776231894,-464.264,9.988e-05,2]
[420204670,1775776231914,-35.736,9.988e-05,2]
[420204672,1775776231927,-436.3166679,9.988e-05,2]
[420204674,1775776231940,-63.6833321,9.988e-05,2]
[420204677,1775776231950,-241.72288063,9.988e-05,2]
[420204679,1775776231968,-266.0,9.989e-05,2]
[420204681,1775776231978,-266.0,9.989e-05,2]
[420204683,1775776231988,-266.0,9.989e-05,2]
[420204685,1775776231998,-266.0,9.989e-05,2]
[420204687,1775776232020,-266.0,9.989e-05,2]
[420204688,1775776232037,-266.0,9.989e-05,2]
[420204689,1775776232046,-266.0,9.989e-05,2]
[420204690,1775776232064,-266.0,9.989e-05,2]
[420204691,1775776232074,-266.0,9.989e-05,2]
[420204692,1775776232095,-161.36329095,9.989e-05,2]
[420204693,1775776232105,-300.0,0.00010986,2]
[420204694,1775776232120,-195.0,0.00010987,2]
[420204696,1775776232131,-600.0,0.00010987,2]
[420204698,1775776232143,-754.57,0.00012055,2]
[420204700,1775776232159,-1600.0,0.00012167,2]
[420204701,1775776232176,-150.0,0.000122,2]
[420204702,1775776232186,-150.0,0.00012257,2]
[420204704,1775776232201,-1838.37,0.00012298,2]
[420204707,1775776232214,-615.68547288,0.0001238,2]
[420204709,1775776232226,-831.64957871,0.0001238,2]
[420204711,1775776232247,-1092.73494841,0.0001238,2]
[420204713,1775776232257,-159.55979868,0.00012412,2]
[420204715,1775776232267,-1500.0,0.00012667,2]
[420204717,1775776232280,-20.18021205,0.00012671,2]
[420204719,1775776232292,-231.14978795,0.00012671,2]
[420204721,1775776232303,-500.0,0.00012856,2]
[420204723,1775776232312,-150.0,0.00012999,2]
[420204725,1775776232322,-1014.6394768,0.00013,2]
[420204728,1775776232339,-696.20302202,0.00013,2]
[420204730,1775776232351,-550.23948953,0.00013,2]
[420204733,1775776232363,-2000.0,0.00013,2]
[420204736,1775776232391,-699.49483532,0.00013,2]
[420204737,1775776232403,-693.01050506,0.00013,2]
[420204738,1775776232414,-30.73948994,0.00013,2]
[420204739,1775776232431,-219.26051006,0.00013,2]
[420204740,1775776232440,-163.29,0.00013026,2]
[420204741,1775776232451,-1772.5273998,0.0001305,2]
[420204742,1775776232468,-505.0,0.000131,2]
[420204743,1775776232478,-2500.0,0.00013173,2]
[420204744,1775776232490,-893.3884,0.00013173,2]
[420204745,1775776232501,-161.36329094,0.00013173,2]
[420204746,1775776232511,-500.0,0.00013186,2]
[420204747,1775776232520,-151.0,0.00013186,2]
[420204748,1775776232531,-151.0,0.00013186,2]
[420204749,1775776232541,-151.0,0.00013186,2]
[420204750,1775776232551,-151.0,0.00013186,2]
[420204751,1775776232561,-151.0,0.00013186,2]
[420204752,1775776232570,-151.0,0.00013186,2]
[420204753,1775776232583,-200.0,0.00013186,2]
[420204754,1775776232593,-151.0,0.00013186,2]
[420204755,1775776232609,-151.0,0.00013186,2]
[420204756,1775776232621,-151.0,0.00013186,2]
[420204757,1775776232630,-151.0,0.00013186,2]
[420204758,1775776232658,-151.0,0.00013186,2]
[420204759,1775776232677,-151.0,0.00013186,2]
[420204760,1775776232688,-882.0,0.00013231,2]
[420204761,1775776232702,-9892.00914054,0.00013269,2]
[420204762,1775776232720,-10483.59703653,0.00013269,2]
[420204763,1775776232732,-4052.95666022,0.00013269,2]
[420204764,1775776232755,-232.60255,0.0001327,2]
[420204765,1775776232779,-188.65171405,0.00013272,2]
[420204766,1775776232794,-164.96,0.00013272,2]
[420204767,1775776232816,-1809.206,0.00013272,2]
[420204768,1775776232850,-500.0,0.00013273,2]